Cogmind - Beta 13 @@@ ROGUE MODE // 2024.04.11 @ 02:48:12 Player: Skysub Result: Destroyed by S-43 Plague with Heavy Machine Gun Performance ------------- Evolutions (9) 4500 Regions Visited (16) 3200 Robots Destroyed (47) 235 Value Destroyed (1242) 1242 Prototype IDs (16) 320 Alien Tech Used (0) 0 Bonus (1771) 1771 TOTAL SCORE: 11268 Bonus ------- Follower Combat Kills 271 Entered DSFs 1000 Hacked Protovariant 500 Cogmind --------- Core Integrity 0/1600 Matter 23/300 Energy 99/100 System Corruption 7% Temperature Cool (6) Movement Core (50) Location -1/Access Parts ------- > --- POWER (2) -------- (None) > --- PROPULSION (8) --- (None) > --- UTILITY (10) ----- (None) > --- WEAPON (5) ------- (None) > --- INVENTORY (5) ---- Centrium Leg Impulse Thruster Advanced Cooling System Relay Coupler [Heavy] (7) Long-range Proton Cannon Peak State ------------ > --- POWER ------------ Micro Antimatter Reactor > --- PROPULSION ------- Field Propulsion Array Field Propulsion Array Improved Q-thruster > --- UTILITY ---------- Advanced Power Amplifier Core Analyzer Experimental Core Analyzer Advanced Transmission Jammer Experimental Core Shielding Improved Hacking Suite Improved Hacking Suite > --- WEAPON ----------- Improved Arc Projector Enhanced Gamma Bomb Array > --- INVENTORY -------- Centrium Leg Improved Heat Sink Advanced Cooling System Relay Coupler [Heavy] Long-range Proton Cannon [Rating: 112] Favorites ----------- Power Ion Engine Engine Ion Engine Power Core Micro Nuclear Core Reactor Micro Antimatter Reactor Propulsion Xenon Bombardment Thruster Wheel Compact Wheel Hover Unit Gravmag System Flight Unit Xenon Bombardment Thruster Utility Improved Hacking Suite Device Improved Sensor Array Storage Medium Storage Unit Processor Core Analyzer Hackware Improved Hacking Suite Protection Experimental Core Shielding Weapon Heavy Particle Gun Energy Gun Heavy Particle Gun Energy Cannon Plasma Cannon Ballistic Gun Assault Rifle Ballistic Cannon Linear Accelerator Launcher Mini Grenade Launcher Slashing Weapon Great Axe Piercing Weapon Enhanced Force Lance Build | -11 -10 -10 -9 -8 -7 -7 -6 -6 -5 -5 -4 -4 -3 -2 -2 -1 ------- Run | Yrd Mat Min Mat Mat Fac Sto Fac DSF Fac Ext Fac DSF Res Res Tes Acc Slots Evolved 18 | . . . 2 2 2 . 2 . 2 . 2 . 2 2 . 2 Power 1 | . . . . . . . . . . . 1 . . . . . Propulsion 6 | . . . . 1 1 . 1 . 1 . 1 . 1 . . . Utility 8 | . . . 2 1 . . 1 . 1 . . . . 1 . 2 Weapon 3 | . . . . . 1 . . . . . . . 1 1 . . Parts Attached 130 | 7 2 1 11 15 15 19 1 3 6 4 . 14 5 6 8 13 Power 12 | 1 . . 2 2 1 2 . . 1 . . . . 1 . 2 Engine 7 | 1 . . 2 2 1 1 . . . . . . . . . . Core 2 | . . . . . . 1 . . 1 . . . . . . . Reactor 3 | . . . . . . . . . . . . . . 1 . 2 Propulsion 46 | 2 . . 2 5 5 7 1 . 1 1 . 12 1 . 2 7 Treads . | . . . . . . . . . . . . . . . . . Leg . | . . . . . . . . . . . . . . . . . Wheel 9 | 2 . . 2 . 5 . . . . . . . . . . . Hover 7 | . . . . 4 . 3 . . . . . . . . . . Flight 30 | . . . . 1 . 4 1 . 1 1 . 12 1 . 2 7 Utility 34 | 2 . 1 4 4 4 4 . 1 3 . . 1 2 2 3 3 Device 18 | 1 . 1 1 3 2 2 . . 1 . . 1 1 2 . 3 Storage 2 | 1 . . 1 . . . . . . . . . . . . . Processor 8 | . . . 2 1 2 1 . . . . . . . . 2 . Hackware 3 | . . . . . . . . . 2 . . . 1 . . . Protection 3 | . . . . . . 1 . 1 . . . . . . 1 . Artifact . | . . . . . . . . . . . . . . . . . Weapon 38 | 2 2 . 3 4 5 6 . 2 1 3 . 1 2 3 3 1 Energy Gun 14 | . . . . 1 1 5 . 2 . 1 . . . 2 2 . Energy Cannon 4 | . . . . . 1 . . . 1 . . . 1 1 . . Ballistic Gun 13 | 2 2 . 3 2 1 1 . . . 2 . . . . . . Ballistic Cannon 2 | . . . . . . . . . . . . . 1 . . 1 Launcher 3 | . . . . 1 1 . . . . . . . . . 1 . Special Weapon . | . . . . . . . . . . . . . . . . . Impact Weapon . | . . . . . . . . . . . . . . . . . Slashing Weapon 1 | . . . . . 1 . . . . . . . . . . . Piercing Weapon 1 | . . . . . . . . . . . . 1 . . . . Special Melee Weapon . | . . . . . . . . . . . . . . . . . Unidentified Prototypes 15 | . . 1 . 3 . 1 . . . . . . . . 9 1 Corrupted Parts 1 | . . . . . . 1 . . . . . . . . . . System Corruption 6 | . . . . . . 6 . . . . . . . . . . Parts Lost 52 | . . 1 1 2 7 7 . . . 1 . 6 2 1 9 15 Power 4 | . . . . . 1 . . . . . . . . . 1 2 Propulsion 24 | . . . 1 1 2 4 . . . 1 . 3 1 1 3 7 Utility 12 | . . 1 . . . . . . . . . 1 1 . 4 5 Weapon 12 | . . . . 1 4 3 . . . . . 2 . . 1 1 Highest Loss Streak 8 | . . 1 1 1 4 3 . . . 1 . 6 2 1 6 8 To Critical Strikes 1 | . . . . . . . . . . . . 1 . . . . Average Slot Usage (%) 78 | . 100 96 93 98 87 83 86 93 97 98 . 79 69 50 46 24 Engine 5 | . 14 14 11 9 7 5 6 6 . . . . . . . . Core 1 | . . . . . . . . . 5 5 . 5 4 . . . Wheel 7 | . 28 28 22 4 7 7 . . . . . . . . . . Hover 3 | . . . . 19 15 4 . . . . . . . . . . Flight 10 | . . . . 1 . 6 33 33 35 35 . 24 23 16 10 12 Device 8 | . 14 10 11 9 8 4 6 6 9 11 . 10 10 7 6 4 Storage 6 | . 14 14 17 9 7 7 6 6 5 5 . 5 4 . . . Processor 12 | . . . 9 26 21 25 20 20 12 11 . 8 4 4 4 3 Hackware 3 | . . . . . . . . . 11 11 . 10 12 13 8 3 Energy Gun 3 | . . . . . 4 9 13 16 11 9 . 3 . 1 3 . Ballistic Gun 8 | . 28 28 22 14 6 2 . . . 5 . 8 . . . . Launcher 1 | . . . . 3 5 . . . . . . . . . 1 . Naked Turns 4 | . . . . . . . . . . . . . . . . 4 Heaviest Build 41 | 13 14 27 41 35 41 33 22 30 33 31 31 36 39 31 31 27 Greatest Support 64 | 26 26 26 26 27 64 60 30 30 36 36 36 51 48 42 45 55 Greatest Overweight (x) 10 | . . 1 1 2 1 5 . . 10 1 . 1 . . 1 . Average Overweight (x) . | . . . . . . . . . . . . . . . . . Largest Inventory Capacity 10 | 8 8 8 10 10 10 10 10 10 10 10 10 10 10 5 5 5 Average Capacity 8 | 7 8 8 9 10 10 10 10 10 10 10 10 10 9 5 5 5 Most Carried 10 | . 2 7 10 10 10 10 9 10 9 10 8 10 7 5 5 5 Average Carried 6 | . . 3 7 7 8 9 9 9 8 9 8 9 4 4 5 4 Final Capacity 10 | 8 8 8 10 10 10 10 10 10 10 10 10 10 5 5 5 5 Final Carried 10 | . 2 5 8 8 7 10 9 9 9 8 8 8 5 5 5 5 Class Distribution -------------------- 45% | Mutant 22% | Hacker-Sprinter 9% | Scout 5% | Skirmisher 5% | Hacker-Mutant 3% | Scavenger-Skirmisher 3% | Sprinter Dominant Class ---------------- Mutant | -10/Materials Mutant | -10/Mines Mutant | -9/Materials Scout | -8/Materials Skirmisher | -7/Factory Mutant | -7/Storage Mutant | -6/Factory Mutant | -6/DSF Hacker-Sprinter | -5/Factory Hacker-Sprinter | -5/Extension Hacker-Sprinter | -4/Factory Hacker-Sprinter | -4/DSF Hacker-Sprinter | -3/Research Hacker-Sprinter | -2/Research Hacker-Mutant | -2/Testing Mutant | -1/Access Resources | -11 -10 -10 -9 -8 -7 -7 -6 -6 -5 -5 -4 -4 -3 -2 -2 -1 ----------- Run | Yrd Mat Min Mat Mat Fac Sto Fac DSF Fac Ext Fac DSF Res Res Tes Acc Matter Collected 1695 | 292 52 18 150 255 81 515 . 47 . 189 . 77 19 . . . Remotely . | . . . . . . . . . . . . . . . . . Salvage Created 1932 | 108 94 138 150 249 118 743 . 25 . 288 . . 19 . . . Parts 126 | 4 4 8 14 21 9 39 . 3 . 23 . . 1 . . . Haulers Intercepted 7 | . 1 . . 2 . 4 . . . . . . . . . . Recyclers Shooed 1 | . . . . . . 1 . . . . . . . . . . Parts Field Recycled . | . . . . . . . . . . . . . . . . . Retrieved Matter . | . . . . . . . . . . . . . . . . . Parts Self-Destructed . | . . . . . . . . . . . . . . . . . Prevented . | . . . . . . . . . . . . . . . . . Kills | -11 -10 -10 -9 -8 -7 -7 -6 -6 -5 -5 -4 -4 -3 -2 -2 -1 ------- Run | Yrd Mat Min Mat Mat Fac Sto Fac DSF Fac Ext Fac DSF Res Res Tes Acc Combat Hostiles Destroyed 23 | . 1 2 3 3 4 6 . 1 . 3 . . . . . . Guns 19 | . 1 2 3 1 3 5 . 1 . 3 . . . . . . Cannons 1 | . . . . . . 1 . . . . . . . . . . AOE 3 | . . . . 2 1 . . . . . . . . . . . Classes Destroyed 13 | 2 2 1 2 . 1 3 . 1 . 1 . . . . . . Worker 5 | . . 2 . 1 1 . . . . 1 . . . . . . Builder 4 | . . . . . . 3 . . . . . . 1 . . . Tunneler 2 | 1 . . . . . . . . . 1 . . . . . . Hauler 7 | . 1 . . 2 . 4 . . . . . . . . . . Recycler 3 | 1 . . . . . 2 . . . . . . . . . . Operator 1 | . . . . . . . . . . 1 . . . . . . Watcher 2 | . . . 1 . . 1 . . . . . . . . . . Swarmer 4 | . . . . . 4 . . . . . . . . . . . Cutter 1 | . . . . . . . . 1 . . . . . . . . Grunt 6 | . 1 2 2 . . . . . . 1 . . . . . . Sentry 8 | . . . 1 3 . 2 . . . 2 . . . . . . Hunter 2 | . . . . . . 2 . . . . . . . . . . Programmer 2 | . . . . . . 2 . . . . . . . . . . Best Kill Streak 6 | 2 1 2 2 3 4 6 . 1 . 2 . . 1 . . . Combat Bots Only 4 | . 1 2 2 1 4 2 . 1 . 1 . . . . . . Max Kills in Single Turn 2 | 1 1 1 1 2 1 2 . 1 . 1 . . 1 . . . Gunslinging . | . . . . . . . . . . . . . . . . . Exploded 1 | . . . . 1 1 . . . . . . . . . . . Melee . | . . . . . . . . . . . . . . . . . Uniques/NPCs Destroyed . | . . . . . . . . . . . . . . . . . Combat | -11 -10 -10 -9 -8 -7 -7 -6 -6 -5 -5 -4 -4 -3 -2 -2 -1 -------- Run | Yrd Mat Min Mat Mat Fac Sto Fac DSF Fac Ext Fac DSF Res Res Tes Acc Hostile Shots Fired 711 | . 19 18 26 22 22 150 . 9 . 10 . 31 16 9 112 267 Missed 317 | . 8 5 11 4 5 55 . 2 . 4 . 14 4 5 49 151 Damage Taken 7835 | . 127 180 173 342 732 882 . 75 . 182 . 488 301 160 1454 2739 Core 2864 | . 27 56 52 74 125 142 . . . 32 . 46 54 115 527 1614 Absorbed by Shields 83 | . . . . . . . . 29 . 48 . . . . 6 . Redirected to Shielding 101 | . . . . . . . . . . . . . . . 101 . Core Remaining (%) 84 | 100 . 66 87 86 . 61 . 100 . 96 . 96 95 . 55 . Volleys Fired 172 | 11 8 14 18 21 15 49 . 2 . 17 . . . 2 11 4 Largest 3 | 2 2 2 2 2 2 3 . 3 . 3 . . . 2 2 1 Hottest 185 | 40 40 40 40 56 80 165 . 165 . 165 . . . 185 185 66 Shots Fired 325 | 22 16 28 36 34 22 93 . 6 . 47 . . . 3 13 5 Gun 292 | 22 16 28 36 30 19 75 . 6 . 47 . . . 2 11 . Cannon 26 | . . . . . . 18 . . . . . . . 1 2 5 Launcher 7 | . . . . 4 3 . . . . . . . . . . . Special . | . . . . . . . . . . . . . . . . . Kinetic 196 | 22 16 28 36 30 9 27 . . . 23 . . . . . 5 Thermal 98 | . . . . . . 56 . 6 . 24 . . . 1 11 . Explosive 7 | . . . . 4 3 . . . . . . . . . . . Electromagnetic 24 | . . . . . 10 10 . . . . . . . 2 2 . Robot Hit Streak 13 | 5 8 5 6 7 3 13 . 2 . 7 . . . 2 4 4 Robot Miss Streak 4 | 3 2 3 3 2 4 4 . 2 . 3 . . . 1 1 . Penetration Max 1 | . . . . . . 1 . . . 1 . . . . . . Secondary Targets 4 | . . 1 . . . 1 . . . 2 . . . . . . Max Gunslinging Chain 1 | . . 1 . . . 1 . . . 1 . . . . . . Shots Hit Robots 205 | 14 12 16 21 24 14 60 . 3 . 31 . . 2 2 5 1 Core Hits 91 | 4 5 8 8 10 8 23 . 3 . 18 . . 1 1 2 . Critical Kills . | . . . . . . . . . . . . . . . . . Critical Parts Destroyed 1 | 1 . . . . . . . . . . . . . . . . Critical Strikes 4 | 1 . . . . . 1 . . . 2 . . . . . . Burn 3 | . . . . . . 1 . . . 2 . . . . . . Destroy 1 | 1 . . . . . . . . . . . . . . . . Melee Attacks 4 | . . . . . . 2 . . . . . . 2 . . . Impact . | . . . . . . . . . . . . . . . . . Slashing 2 | . . . . . . 2 . . . . . . . . . . Piercing 2 | . . . . . . . . . . . . . 2 . . . Sneak Attacks 2 | . . . . . . 1 . . . . . . 1 . . . Combat Hostiles . | . . . . . . . . . . . . . . . . . Follow-up Attacks . | . . . . . . . . . . . . . . . . . Damage Inflicted 4075 | 115 131 182 251 420 359 1363 . 87 . 744 . . 193 4 172 54 Guns 3048 | 115 131 182 251 308 176 982 . 87 . 744 . . . 4 68 . Cannons 420 | . . . . . . 274 . . . . . . . . 104 42 Explosions 295 | . . . . 112 183 . . . . . . . . . . . Melee 299 | . . . . . . 107 . . . . . . 192 . . . Ramming 13 | . . . . . . . . . . . . . 1 . . 12 Kinetic 1904 | 115 131 182 251 308 65 366 . . . 444 . . . . . 42 Thermal 1364 | . . . . . 82 726 . 87 . 300 . . . . 169 . Explosive 213 | . . . . 112 101 . . . . . . . . . . . Electromagnetic 282 | . . . . . 111 164 . . . . . . . 4 3 . Impact . | . . . . . . . . . . . . . . . . . Slashing 107 | . . . . . . 107 . . . . . . . . . . Piercing 192 | . . . . . . . . . . . . . 192 . . . Highest Corruption 11 | . . . . . 2 11 . 1 . . . . . 1 8 7 Average Corruption 5 | . . . . . 2 7 . 1 . . . . . 1 3 5 Corruption Purged . | . . . . . . . . . . . . . . . . . Corruption Blocked 20 | . . . . . . . . . . . . . . . 20 . Effects 30 | . . . . . 1 17 . . . . . . . . 3 9 Message Errors 4 | . . . . . . 2 . . . . . . . . . 2 Matter Fused 7 | . . . . . . 4 . . . . . . . . 1 2 Heat Flow Errors 6 | . . . . . . 3 . . . . . . . . . 3 Energy Discharges 4 | . . . . . . 2 . . . . . . . . 2 . Parts Rejected 1 | . . . . . . 1 . . . . . . . . . . Data Loss (minor) 3 | . . . . . . 2 . . . . . . . . . 1 Data Loss (major) 1 | . . . . . . 1 . . . . . . . . . . Misfires 2 | . . . . . . 1 . . . . . . . . . 1 Alerts 1 | . . . . . 1 . . . . . . . . . . . Weapon Failures 1 | . . . . . . 1 . . . . . . . . . . Overload Shots . | . . . . . . . . . . . . . . . . . Overflow Damage 178 | . . . . . 106 8 . . . . . . 64 . . . Projectiles 1 | . . . . . . 1 . . . . . . . . . . Explosions 106 | . . . . . 106 . . . . . . . . . . . Melee 71 | . . . . . . 7 . . . . . . 64 . . . Knockbacks . | . . . . . . . . . . . . . . . . . Impact . | . . . . . . . . . . . . . . . . . Kinetic . | . . . . . . . . . . . . . . . . . Secondary . | . . . . . . . . . . . . . . . . . Self-Inflicted Damage 358 | . . . . 69 283 . . . . . . . . . . 6 Shots 7 | . . . . 2 5 . . . . . . . . . . . Rammed 2 | . . . . . . . . . . . . . 1 . . 1 Targets Rammed 2 | . . . . . . . . . . . . . 1 . . 1 Kicked . | . . . . . . . . . . . . . . . . . Crushed . | . . . . . . . . . . . . . . . . . Highest Temperature 650 | . 6 15 2 22 40 650 . 49 33 249 6 254 238 63 281 240 Average Temperature 110 | . 6 8 2 8 18 175 . 28 12 79 6 155 99 32 125 102 Received Heat Transfer 1081 | . 72 105 87 108 . 186 . . . 52 . 42 63 . 195 171 Effects 10 | . . . . . . 10 . . . . . . . . . . Shutdowns 2 | . . . . . . 2 . . . . . . . . . . Energy Bleed 1 | . . . . . . 1 . . . . . . . . . . Interference 3 | . . . . . . 3 . . . . . . . . . . Matter Decay 2 | . . . . . . 2 . . . . . . . . . . Short Circuit 1 | . . . . . . 1 . . . . . . . . . . Damage (minor) 1 | . . . . . . 1 . . . . . . . . . . Siege Activations . | . . . . . . . . . . . . . . . . . Robots Corrupted . | . . . . . . . . . . . . . . . . . Combat Hostiles . | . . . . . . . . . . . . . . . . . Parts Fried 1 | . . . . . 1 . . . . . . . . . . . Impact Corruptions . | . . . . . . . . . . . . . . . . . Robots Melted . | . . . . . . . . . . . . . . . . . Combat Hostiles . | . . . . . . . . . . . . . . . . . Parts Melted 7 | . . . . . . 6 . . . 1 . . . . . . Heat Transferred 2648 | . . . . . 100 1438 . 185 . 777 . . . . 148 . Parts Sabotaged . | . . . . . . . . . . . . . . . . . Parts Stolen . | . . . . . . . . . . . . . . . . . Parts Stripped . | . . . . . . . . . . . . . . . . . Power Chain Reactions 1 | . . . . . 1 . . . . . . . . . . . Alert | -11 -10 -10 -9 -8 -7 -7 -6 -6 -5 -5 -4 -4 -3 -2 -2 -1 ------- Run | Yrd Mat Min Mat Mat Fac Sto Fac DSF Fac Ext Fac DSF Res Res Tes Acc Peak Influence 577 | 10 53 70 119 256 390 302 53 72 44 330 163 114 39 18 103 577 Initial 161 | . 6 20 27 50 116 86 53 37 37 21 161 114 4 10 9 46 Average 118 | 1 20 58 75 127 204 166 53 40 37 90 161 91 9 11 49 255 Maximum Alert Level 2 | . . . . 1 1 1 . . . 1 . . . . . 2 Low Security (%) 81 | 100 100 100 100 74 59 78 100 100 100 92 100 100 100 100 100 34 Level 1 16 | . . . . 25 40 21 . . . 7 . . . . . 47 Level 2 2 | . . . . . . . . . . . . . . . . 17 Level 3 . | . . . . . . . . . . . . . . . . . Level 4 . | . . . . . . . . . . . . . . . . . Level 5 . | . . . . . . . . . . . . . . . . . High Security . | . . . . . . . . . . . . . . . . . Max Security . | . . . . . . . . . . . . . . . . . Squads Dispatched 22 | . 3 . 1 . . 2 . 1 . 1 . 1 2 . 6 5 Investigation 9 | . . . 1 . . . . . . 1 . . 1 . 2 4 Extermination 1 | . . . . . . 1 . . . . . . . . . . Reinforcement 10 | . 3 . . . . 1 . 1 . . . 1 1 . 2 1 Assault 1 | . . . . . . . . . . . . . . . 1 . Garrison 1 | . . . . . . . . . . . . . . . 1 . Intercept . | . . . . . . . . . . . . . . . . . Searches Triggered . | . . . . . . . . . . . . . . . . . Construction Impeded . | . . . . . . . . . . . . . . . . . Haulers Reinforced 1 | . . . . . . 1 . . . . . . . . . . Active Scanning Responses . | . . . . . . . . . . . . . . . . . Cargo Convoy Interrupts . | . . . . . . . . . . . . . . . . . Stealth | -11 -10 -10 -9 -8 -7 -7 -6 -6 -5 -5 -4 -4 -3 -2 -2 -1 --------- Run | Yrd Mat Min Mat Mat Fac Sto Fac DSF Fac Ext Fac DSF Res Res Tes Acc Distress Signals 7 | . 1 . 1 . . 2 . . . 1 . . . 1 1 . Communications Jammed 77 | . . . . . . . . . . 50 . . . . 27 . Distress Signals 77 | . . . . . . . . . . 50 . . . . 27 . Times Spotted 169 | . 9 2 5 3 6 12 . 4 . 11 . 6 13 4 20 74 Peak Tracking Total 19 | . 8 2 3 1 4 4 . 4 . 4 . 6 13 4 11 19 Tactical Retreats 17 | . . . . . . 1 . 1 . . . . . . 3 12 Traps | -11 -10 -10 -9 -8 -7 -7 -6 -6 -5 -5 -4 -4 -3 -2 -2 -1 ------- Run | Yrd Mat Min Mat Mat Fac Sto Fac DSF Fac Ext Fac DSF Res Res Tes Acc Traps Triggered 12 | . . . 2 . 2 . . 1 . . . . 3 . 2 2 Indirectly . | . . . . . . . . . . . . . . . . . Trap Hack Attempts . | . . . . . . . . . . . . . . . . . Triggered . | . . . . . . . . . . . . . . . . . Disarmed 8 | . . . . 2 . . . . . 6 . . . . . . Reprogrammed 5 | . . . . . . . . . 5 . . . . . . . Reused . | . . . . . . . . . . . . . . . . . Traps Extracted . | . . . . . . . . . . . . . . . . . Installed . | . . . . . . . . . . . . . . . . . Triggered . | . . . . . . . . . . . . . . . . . Most Traps Carried 5 | . . 5 . . . . . . . . . . . . . . Machines | -11 -10 -10 -9 -8 -7 -7 -6 -6 -5 -5 -4 -4 -3 -2 -2 -1 ---------- Run | Yrd Mat Min Mat Mat Fac Sto Fac DSF Fac Ext Fac DSF Res Res Tes Acc Machines Disabled 11 | . . . . 1 10 . . . . . . . . . . . Max in Single Turn 6 | . . . . 1 6 . . . . . . . . . . . Garrison Access 1 | . . . . 1 . . . . . . . . . . . . Machines Repaired . | . . . . . . . . . . . . . . . . . Machines Dismantled . | . . . . . . . . . . . . . . . . . Machines Sabotaged . | . . . . . . . . . . . . . . . . . Overloaded Fab Kills . | . . . . . . . . . . . . . . . . . Hacking | -11 -10 -10 -9 -8 -7 -7 -6 -6 -5 -5 -4 -4 -3 -2 -2 -1 --------- Run | Yrd Mat Min Mat Mat Fac Sto Fac DSF Fac Ext Fac DSF Res Res Tes Acc Machines Accessed 40 | . 1 1 2 4 . 7 2 . 4 6 1 . 2 . 4 6 Terminals 36 | . 1 . 1 3 . 7 2 . 3 6 1 . 2 . 4 6 Fabricators . | . . . . . . . . . . . . . . . . . Repair Stations . | . . . . . . . . . . . . . . . . . Recycling Units 2 | . . . 1 . . . . . 1 . . . . . . . Scanalyzers . | . . . . . . . . . . . . . . . . . Garrison Access 1 | . . . . 1 . . . . . . . . . . . . Total Hacks 88 | . 3 1 7 9 . 13 4 . 8 11 2 . 5 . 13 12 Successful 37 | . 2 1 3 4 . 6 1 . 4 10 1 . 1 . 3 1 Failed 51 | . 1 . 4 5 . 7 3 . 4 1 1 . 4 . 10 11 Catastrophic 13 | . 1 . 2 1 . 2 1 . 1 . . . . . 1 4 Database Lockouts . | . . . . . . . . . . . . . . . . . Manual 12 | . 1 . . 4 . 1 . . 3 2 . . 1 . . . Terminals 82 | . 3 . 4 8 . 13 4 . 7 11 2 . 5 . 13 12 Fabricators . | . . . . . . . . . . . . . . . . . Repair Stations . | . . . . . . . . . . . . . . . . . Recycling Units 4 | . . . 3 . . . . . 1 . . . . . . . Scanalyzers . | . . . . . . . . . . . . . . . . . Garrison Access 1 | . . . . 1 . . . . . . . . . . . . Terminal Hacks 33 | . 2 1 1 3 . 6 1 . 3 10 1 . 1 . 3 1 Record 4 | . . . . . . 2 . . . 2 . . . . . . Part Schematic 1 | . . . . . . . . . . . . . . . 1 . Open Door 10 | . . 1 . . . 3 . . . 5 . . . . 1 . Open DSF 3 | . . . . . . . 1 . 1 . 1 . . . . . Level Access Points 2 | . . . . . . . . . 1 . . . 1 . . . Emergency Access Points 1 | . . . 1 . . . . . . . . . . . . . Terminal Index 1 | . 1 . . . . . . . . . . . . . . . Alert Level 1 | . . . . . . . . . . 1 . . . . . . Unreport Threat 1 | . . . . . . . . . . 1 . . . . . . Disarm Traps 2 | . . . . 1 . . . . . 1 . . . . . . Reprogram Traps 1 | . . . . . . . . . 1 . . . . . . . Maintenance Status 1 | . . . . 1 . . . . . . . . . . . . Patrol Status 1 | . . . . 1 . . . . . . . . . . . . Assault Status 1 | . 1 . . . . . . . . . . . . . . . Recall Reinforcements 1 | . . . . . . . . . . . . . . . . 1 Zone Layout 1 | . . . . . . 1 . . . . . . . . . . Protovariant Controls 1 | . . . . . . . . . . . . . . . 1 . Fabricator Hacks . | . . . . . . . . . . . . . . . . . Repair Station Hacks . | . . . . . . . . . . . . . . . . . Recycling Unit Hacks 3 | . . . 2 . . . . . 1 . . . . . . . Report Inventory 1 | . . . 1 . . . . . . . . . . . . . Retrieve Components 2 | . . . 1 . . . . . 1 . . . . . . . Scanalyzer . | . . . . . . . . . . . . . . . . . Garrison Access Hacks 1 | . . . . 1 . . . . . . . . . . . . Seal Access 1 | . . . . 1 . . . . . . . . . . . . Unauthorized Hacks . | . . . . . . . . . . . . . . . . . Terminals . | . . . . . . . . . . . . . . . . . Fabricators . | . . . . . . . . . . . . . . . . . Repair Stations . | . . . . . . . . . . . . . . . . . Recycling Units . | . . . . . . . . . . . . . . . . . Scanalyzers . | . . . . . . . . . . . . . . . . . Garrison Access . | . . . . . . . . . . . . . . . . . Data Cores Recovered 1 | . . . . . . . . . . 1 . . . . . . Used . | . . . . . . . . . . . . . . . . . Hacking Detections 32 | . 1 . 2 3 . 6 2 . 2 3 1 . 2 . 4 6 Full Trace Events 8 | . . . 1 . . . . . . 1 . . 1 . 2 3 Feedback Events 2 | . . . . . . . . . . . . . . . 1 1 Corruption 1 | . . . . . . . . . . . . . . . . 1 Hackware Fried 1 | . . . . . . . . . . . . . . . 1 . Feedback Blocked . | . . . . . . . . . . . . . . . . . Robot Schematics Acquired . | . . . . . . . . . . . . . . . . . Robots Built . | . . . . . . . . . . . . . . . . . Authchips . | . . . . . . . . . . . . . . . . . Time . | . . . . . . . . . . . . . . . . . Total Robot Build Rating . | . . . . . . . . . . . . . . . . . Part Schematics Acquired 1 | . . . . . . . . . . . . . . . 1 . Parts Built . | . . . . . . . . . . . . . . . . . Authchips . | . . . . . . . . . . . . . . . . . Time . | . . . . . . . . . . . . . . . . . Total Part Build Rating . | . . . . . . . . . . . . . . . . . Parts Repaired . | . . . . . . . . . . . . . . . . . Time . | . . . . . . . . . . . . . . . . . Parts Recycled . | . . . . . . . . . . . . . . . . . Recycled Matter . | . . . . . . . . . . . . . . . . . Retrieved Matter . | . . . . . . . . . . . . . . . . . Retrieved Components 4 | . . . 3 . . . . . 1 . . . . . . . Parts Scanalyzed . | . . . . . . . . . . . . . . . . . Part Schematics Acquired . | . . . . . . . . . . . . . . . . . Parts Damaged . | . . . . . . . . . . . . . . . . . Bothacking | -11 -10 -10 -9 -8 -7 -7 -6 -6 -5 -5 -4 -4 -3 -2 -2 -1 ------------ Run | Yrd Mat Min Mat Mat Fac Sto Fac DSF Fac Ext Fac DSF Res Res Tes Acc Used RIF Installer . | . . . . . . . . . . . . . . . . . Robots Hacked . | . . . . . . . . . . . . . . . . . Non-combat . | . . . . . . . . . . . . . . . . . Combat . | . . . . . . . . . . . . . . . . . Robot Hacks Applied . | . . . . . . . . . . . . . . . . . Relay Couplers Released . | . . . . . . . . . . . . . . . . . Fabnet Peak Effective % . | . . . . . . . . . . . . . . . . . Robots Rewired . | . . . . . . . . . . . . . . . . . Allies Hacked . | . . . . . . . . . . . . . . . . . Hacks Repelled . | . . . . . . . . . . . . . . . . . Allies | -11 -10 -10 -9 -8 -7 -7 -6 -6 -5 -5 -4 -4 -3 -2 -2 -1 -------- Run | Yrd Mat Min Mat Mat Fac Sto Fac DSF Fac Ext Fac DSF Res Res Tes Acc Total Allies 6 | . . . . . . . . . . 6 . . . . . . Largest Group 6 | . . . . . . . . . . 6 4 4 . . . . Highest-Rated Group 316 | . . . . . . . . . . 316 260 260 . . . . Highest-Rated Ally 159 | . . . . . . . . . . 159 159 159 . . . . Total Orders 2 | . . 2 . . . . . . . . . . . . . . FOLLOW 1 | . . 1 . . . . . . . . . . . . . . RETURN 1 | . . 1 . . . . . . . . . . . . . . Ally Attacks 71 | . . . . . . . . . . 69 . 2 . . . . Total Damage 1396 | . . . . . . . . . . 1374 . 22 . . . . Kills 8 | . . . . . . . . . . 8 . . . . . . Allies Corrupted . | . . . . . . . . . . . . . . . . . Allies Melted . | . . . . . . . . . . . . . . . . . Intel | -11 -10 -10 -9 -8 -7 -7 -6 -6 -5 -5 -4 -4 -3 -2 -2 -1 ------- Run | Yrd Mat Min Mat Mat Fac Sto Fac DSF Fac Ext Fac DSF Res Res Tes Acc Robot Analysis Total . | . . . . . . . . . . . . . . . . . Derelict Logs Recovered 1 | . . 1 . . . . . . . . . . . . . . Drone Launches 6 | . . 4 . 1 1 . . . . . . . . . . . Drone Recoveries 4 | . . 3 1 . . . . . . . . . . . . . Exploration | -11 -10 -10 -9 -8 -7 -7 -6 -6 -5 -5 -4 -4 -3 -2 -2 -1 ------------- Run | Yrd Mat Min Mat Mat Fac Sto Fac DSF Fac Ext Fac DSF Res Res Tes Acc Turns Passed 3231 | 87 135 265 289 198 418 473 7 40 172 257 5 79 130 102 180 394 Spaces Moved 3908 | 55 119 170 198 158 291 316 22 41 310 311 17 97 188 295 358 962 Core 24 | 1 . . . . . 2 . . 1 . . . . . . 20 Treads . | . . . . . . . . . . . . . . . . . Legs . | . . . . . . . . . . . . . . . . . Wheels 779 | 54 119 170 198 35 97 106 . . . . . . . . . . Hover 359 | . . . . 123 194 42 . . . . . . . . . . Flight 2746 | . . . . . . 166 22 41 309 311 17 97 188 295 358 942 Fastest Speed 5 | 50 90 90 90 52 52 31 28 28 25 25 25 5 7 15 22 25 Average Speed 49 | 87 90 101 100 63 92 73 28 28 29 28 25 25 17 24 35 35 Slowest Speed 550 | 90 90 105 105 190 116 300 28 28 550 108 25 117 25 29 107 50 Overloaded Moves 114 | . . . . . . . . . . . . 45 30 24 15 . Propulsion Burnouts . | . . . . . . . . . . . . . . . . . Robots Hopped 35 | . . . . . . . . . 1 5 . . 2 . 5 22 Cave-ins Triggered . | . . . . . . . . . . . . . . . . . Exploration Rate (%) 27 | 3 35 38 20 23 10 55 1 43 11 47 1 87 8 6 49 36 Regions Visited 16 Branch Regions 4 Pre-discovered Areas . | . . . . . . . . . . . . . . . . . Known Exits Taken 8 | . . 1 . . 1 1 1 . 1 1 1 . 1 . . . Unknown Exits Taken 6 | 1 1 . 1 1 . . . . . . . . . 1 1 . Scrap Searched . | . . . . . . . . . . . . . . . . . Spaces Dug 2 | . . . . . . . . . . . . . . . . 2 Terrain Destroyed 129 | . . . . 42 73 7 . . . 4 . . . 1 . 2 Melee . | . . . . . . . . . . . . . . . . . Projectile 14 | . . . . . . 7 . . . 4 . . . 1 . 2 AOE 115 | . . . . 42 73 . . . . . . . . . . . Terrain Rammed . | . . . . . . . . . . . . . . . . . Walls Destroyed . | . . . . . . . . . . . . . . . . . Machines Disabled . | . . . . . . . . . . . . . . . . . Actions | -11 -10 -10 -9 -8 -7 -7 -6 -6 -5 -5 -4 -4 -3 -2 -2 -1 --------- Run | Yrd Mat Min Mat Mat Fac Sto Fac DSF Fac Ext Fac DSF Res Res Tes Acc Total 4853 | 72 131 238 250 221 419 468 22 65 387 437 17 154 281 319 393 979 Wait 502 | . 2 41 14 15 83 60 . . 69 107 1 21 54 15 3 17 Move 3824 | 54 118 169 197 157 290 315 21 40 307 300 16 96 184 294 348 918 Hop 34 | . . . . . . . . . 1 5 . . 2 . 4 22 Pick Up 47 | . 1 8 3 1 9 9 . 4 2 1 . 6 . 1 . 2 Fast Attach 73 | 7 . 1 7 8 4 11 . . 1 1 . 8 . 4 9 12 Attach 42 | . . . 3 4 9 5 1 3 3 3 . 4 4 2 . 1 Detach 35 | . . . 4 7 3 6 . 1 2 2 . 3 4 1 2 . Swap 16 | . 2 . 1 3 2 3 . . 2 . . 2 1 . . . Drop 51 | . . 5 3 5 4 8 . 2 . 1 . 14 . . 7 2 Fire 172 | 11 8 14 18 21 15 49 . 2 . 17 . . . 2 11 4 Melee 4 | . . . . . . 2 . . . . . . 2 . . . Ram 1 | . . . . . . . . . . . . . . . . 1 Kick . | . . . . . . . . . . . . . . . . . Crush . | . . . . . . . . . . . . . . . . . Escape Stasis 52 | . . . . . . . . 13 . . . . 30 . 9 . Rewire . | . . . . . . . . . . . . . . . . . Trap . | . . . . . . . . . . . . . . . . . Miscellaneous . | . . . . . . . . . . . . . . . . . Route ------- -11/Scrapyard -10/Materials -10/Mines (discovered 2 exits: *Mat x2) -9/Materials -8/Materials -7/Factory -7/Storage -6/Factory -6/DSF -5/Factory (discovered 5 exits: Fac x4 / *Ext) -5/Extension -4/Factory -4/DSF -3/Research (discovered 3 exits: *Res x3) -2/Research -2/Testing -1/Access History --------- Turn | Location | Event 23 | -11/Scrapyard | Discovered new exit (range 15) 88 | -11/Scrapyard | Entered Materials 217 | -10/Materials | Discovered new exit (range 8) 223 | -10/Materials | Entered Mines 264 | -10/Mines | Found a hidden stash of uninstalled traps 289 | -10/Mines | Found the Drone Emporium 300 | -10/Mines | Found Prototype Device 300 | -10/Mines | Identified Sensor Drone Bay 321 | -10/Mines | Build established: Mutant 378 | -10/Mines | Received a Rocket Launcher from a helpful Derelict 382 | -10/Mines | Discovered new exit (range 9) 446 | -10/Mines | Identified exit to Materials 449 | -10/Mines | Learned 2 Materials zone layouts 465 | -10/Mines | Discovered exit to Materials (range 6) 488 | -10/Mines | Entered Materials 488 | -9/Materials | Accompanied by 1 ally 488 | -9/Materials | Evolved 2 slots: Utility x2 773 | -9/Materials | Discovered new exit (range 4) 777 | -9/Materials | Entered another Materials area 777 | -8/Materials | Evolved 2 slots: Propulsion x1, Utility x1 973 | -8/Materials | Discovered new exit (range 3) 975 | -8/Materials | Entered Factory 975 | -7/Factory | Evolved 2 slots: Propulsion x1, Weapon x1 1249 | -7/Factory | Lost 4 parts (1p1n2w) 1377 | -7/Factory | Discovered new exit (range 15) 1390 | -7/Factory | Identified exit to Storage 1393 | -7/Factory | Entered Storage 1586 | -7/Storage | Lost 3 parts (2n1w) 1682 | -7/Storage | System corruption reached 10% 1708 | -7/Storage | Lost 3 parts (2n1w) 1857 | -7/Storage | Discovered new exit (range 16) 1861 | -7/Storage | Identified exit to Factory 1866 | -7/Storage | Entered Factory 1866 | -6/Factory | Evolved 2 slots: Propulsion x1, Utility x1 1873 | -6/Factory | Identified exit to DSF 1873 | -6/Factory | Entered DSF 1887 | -6/DSF | Discovered new exit (range 11) 1912 | -6/DSF | Identified exit to Factory 1913 | -6/DSF | Entered Factory 1913 | -5/Factory | Evolved 2 slots: Propulsion x1, Utility x1 2080 | -5/Factory | Identified exit to Factory 2083 | -5/Factory | Discovered new exit (range 8) 2084 | -5/Factory | Identified exit to Extension 2085 | -5/Factory | Entered Extension 2117 | -5/Extension | Rescued A7 2211 | -5/Extension | Rescued a captive Derelict 2212 | -5/Extension | Rescued a captive Derelict 2224 | -5/Extension | Rescued a captive Derelict 2225 | -5/Extension | Rescued a captive Derelict 2228 | -5/Extension | Rescued a captive Derelict 2282 | -5/Extension | Spotted B-75 Beast 2283 | -5/Extension | Spotted B-75 Beast 2304 | -5/Extension | Allies destroyed B-75 Beast 2312 | -5/Extension | Allies destroyed B-75 Beast 2318 | -5/Extension | Discovered exit to Factory (range 3) 2339 | -5/Extension | P-70 Sage assimilated allied N1-CK9(g) 2342 | -5/Extension | Entered Factory 2342 | -4/Factory | Accompanied by 4 allies (A7) 2342 | -4/Factory | Evolved 2 slots: Power x1, Propulsion x1 2346 | -4/Factory | Identified exit to DSF 2347 | -4/Factory | Entered DSF 2347 | -4/DSF | Accompanied by 4 allies (A7) 2365 | -4/DSF | Additional patrols routed to DSF 2409 | -4/DSF | Found Enh. Force Lance 2417 | -4/DSF | Discovered new exit (range 16) 2426 | -4/DSF | Entered Research 2426 | -3/Research | Evolved 2 slots: Propulsion x1, Weapon x1 2435 | -3/Research | Lost 3 allies 2455 | -3/Research | Lost 6 parts (3n1u2w) 2553 | -3/Research | Identified exit to Research 2556 | -3/Research | Entered another Research area 2556 | -2/Research | Evolved 2 slots: Utility x1, Weapon x1 2648 | -2/Research | Discovered new exit (range 15) 2658 | -2/Research | Entered Testing 2658 | -2/Testing | Spotted PG-6JG09XVFV3 2674 | -2/Testing | Imp. Hacking Suite fried by hacking feedback 2714 | -2/Testing | Lost 4 parts (2n2u) 2719 | -2/Testing | Protovariant out of control (PG-6JG09XVFV3) 2719 | -2/Testing | Unleashed a protovariant (PG-6JG09XVFV3) 2733 | -2/Testing | Found Prototype Processor 2733 | -2/Testing | Identified Exp. Signal Interpreter 2739 | -2/Testing | Garrison activated, responded to threat 2744 | -2/Testing | Found Prototype Launcher 2744 | -2/Testing | Identified Enh. Gamma Bomb Array 2758 | -2/Testing | Found Prototype Processor 2758 | -2/Testing | Identified Spectral Analyzer 2771 | -2/Testing | Found Prototype Processor 2771 | -2/Testing | Identified Exp. Core Analyzer 2832 | -2/Testing | Discovered new exit (range 15) 2838 | -2/Testing | Entered Access 2838 | -1/Access | Evolved 2 slots: Utility x2 2864 | -1/Access | Lost 6 parts (1p2n2u1w) 3023 | -1/Access | Lost 3 parts (2p1n) 3206 | -1/Access | Core integrity fell below 50% 3226 | -1/Access | Core integrity fell below 20% 3232 | -1/Access | Destroyed by S-43 Plague with Heavy Machine Gun Last Messages --------------- Imp. Hacking Suite destroyed. Connecting with Terminal... ALERT: Suspicious activity at Terminal A015. Dispatching Investigation squad. Acquired Phase Shifter. Phase Shifter destroyed. System corrupted: Matter fused (-9). S-43 Plague destroyed. Electron Diverter destroyed. Acquired Xenon Bombardment Thruster. Xenon Bombardment Thruster destroyed. Slammed into T-07 Excavator. S-43 Plague destroyed. K-01 Serf collects debris. System corrupted: Heat flow error (+248). Triggered Segregator Trap. Arcs of energy rise from the floor. Exp. Core Analyzer blown off. A-15 Conveyor suffers critical hit (Burn). T-07 Excavator suffers critical hit (Burn). Map ----- +----------------------------------------------------+ | # ?# #????????????? | | # ???# #????????????? | | # ?????# #??????????### | | # ???????# #????????? | | ##+########## #????????? | | ########? | | ####### #? | | #?????# # = | | #?????# # = | | ############### #?????# + = | | ??????????????# #?????# # | | ??????????????# #?????# # | | ??????????????# #?????# #? | | ??????????????# #?????######## #? | | ??????????????# #????????????# #?? | | ??????????????# #????????????# #??#### | | ??????????????# #????????????# #?????? | | ??????????????# #????????????# #?????? | | ??????????????# #????????????# #?????? | | ???????######## ############## #?????? | | ???????# s #?????? | | ???????# s #?????? | | ???????# #?????? | | ???????# w s #?????? | | ? ?????# s #?????? | | # ?????# g @ ss #?????? | | # ?????# A w t s s ####### | | # ###### ##################### | | # * #???????????????????# | | # #???????????????????# | | # #???????????????????# | | # "" #???????????????????# = | | # """#???????????????????# =% | | # """"" T"#???????????????????# | | # """"" """#?????????????############## | | # """"" "" #?????????????# # | | # """"" #?????????????# # | | + """"" +?????????????? "" +%= | | # #?????????????? "" # | | # ] #??????????????? """""" # | | + #????????????????"""""" # | | ######## #??????????????????"" # | | #??????# #??????????????????"" # | | #??????# #????????????????? # | | #??????# #???????????????? # | | ???????# #???????????????? # | | ???????# #?????????????? # | | ???????# #??????????????############# | | ??????? #??????????????????????????######## | | ??????? #?????????????????????????????????? | +----------------------------------------------------+ Best States ------------- Heat Dissipation 60 Energy Generation 25 Energy Capacity 280 Matter Stores 300 Matter Capacity 300 Sight Range 18 Robot Scan Range 15 Terrain Scan Range 16 Terrain Scan Density 310 ECM Strength 1 Jamming Range 16 Power Amplification 30 Additional Mass Support 9 Armor Coverage 225 Core Shielding 40 Phase Shifting 5 Evasion (%) 67 Core Analysis 8 Offensive Hacking 36 Item Schematics ----------------- Lgt. Regenerative Plating | -2/Testing | Hacked Robot Schematics ------------------ None Fabricated ------------ Nothing Alien Tech Used ----------------- None Achievements -------------- Denied? Party Time Prison Break Speed Demon Supersonic Challenges ------------ None Game ------ Seed NovaFlyingStorage Manual? 0 Play Time 02:21:26 Cumulative 24.9 hours Start 2024.04.11 @ 00:27:24 End 2024.04.11 @ 02:48:12 Sessions 1 Manual Loads 0 Difficulty Rogue Special Mode None Game No. 15 Rogue 15 Adventurer 0 Explorer 0 Win Type - Total 0 Types 0/0/0/0/0/0/0/0/0 Lore% 17 Gallery% 31 Achievement% 23 Wizard Run 0 Options --------- Layout 1 ASCII 0 Keyboard 1 Movement Numpad Keybinds 0 Fullscreen 1 Font 32/SmallcapsGlow Map View 77x35 Zoom Use 0% Tactical HUD 0 Map Filters NONE Filters NONE Steam 1 RUN: 06e8c1b7-4b08-4aa0-bdce-153b34c30eda